bitfinex/quotes_BTCUSD_20241223
["timestamp","ask_amount","ask_price","bid_price","bid_amount"]
[1734980487032,0.4433888,92865.0,92864.0,0.00070322]
[1734980487236,0.365366,92865.0,92864.0,0.00070322]
[1734980487874,0.365366,92865.0,92850.0,0.40265]
[1734980487875,0.215377,92861.0,92850.0,0.40265]
[1734980488273,0.02702632,92860.0,92850.0,0.40265]
[1734980488477,0.11151887,92865.0,92864.0,0.001]
[1734980488694,1.07924187,92865.0,92864.0,0.001]
[1734980488899,1.18322819,92865.0,92864.0,0.001]
[1734980489251,0.29063187,92865.0,92864.0,0.001]
[1734980489658,0.28763187,92865.0,92850.0,0.40265]
[1734980489836,0.215389,92855.0,92850.0,0.40265]
[1734980491683,0.367389,92855.0,92850.0,0.40265]
[1734980492437,0.05515853,92855.0,92850.0,0.40265]
[1734980492590,0.215389,92855.0,92850.0,0.40265]
[1734980493004,0.431779,92855.0,92850.0,0.40265]
[1734980493671,0.430779,92855.0,92850.0,0.40265]
[1734980493902,0.44557732,92854.0,92850.0,0.40265]
[1734980494098,1.93835432,92854.0,92850.0,0.40265]
[1734980494295,0.215398,92851.0,92850.0,0.40265]
[1734980494500,0.46938432,92851.0,92850.0,0.40265]
[1734980496156,0.365398,92851.0,92850.0,0.40265]
[1734980496360,0.368398,92851.0,92850.0,0.40265]
[1734980496568,0.373398,92851.0,92850.0,0.40365]
[1734980496694,0.365398,92851.0,92850.0,0.40265]
[1734980497103,0.373398,92851.0,92850.0,0.40365]
[1734980497305,0.368398,92851.0,92850.0,0.40265]
[1734980497628,0.56085262,92851.0,92850.0,0.40365]
[1734980497825,0.56585262,92851.0,92850.0,0.32865]
[1734980498032,0.4568663,92851.0,92850.0,0.32765]
[1734980498356,0.4588663,92851.0,92850.0,0.32865]
[1734980498588,0.373398,92851.0,92850.0,0.32865]
[1734980498791,0.008,92851.0,92850.0,0.42865]
[1734980499040,0.008,92851.0,92850.0,0.52865]
[1734980499247,0.005,92851.0,92850.0,0.63263632]
[1734980499454,0.006,92851.0,92850.0,0.63263632]
[1734980499654,0.001,92851.0,92850.0,0.63163632]
[1734980499872,0.001,92854.0,92850.0,0.67313632]
[1734980500056,0.001,92854.0,92853.0,0.2]
[1734980500287,0.001,92854.0,92853.0,0.30398632]
[1734980501006,0.001,92854.0,92853.0,0.15298632]
[1734980501221,0.002,92854.0,92853.0,0.15406305]
[1734980501422,0.001,92854.0,92853.0,0.33246305]
[1734980501625,0.001,92854.0,92853.0,0.33138632]
[1734980502244,0.001,92854.0,92853.0,0.15298632]
[1734980502459,0.001,92854.0,92850.0,0.3227355]
[1734980502668,0.001,92854.0,92853.0,0.005]
[1734980502882,0.002,92854.0,92853.0,0.014]
[1734980503093,0.430788,92853.0,92850.0,0.3227355]
[1734980503303,0.15,92852.0,92850.0,0.3227355]
[1734980503493,0.365398,92851.0,92850.0,0.3227355]
[1734980503818,0.365398,92851.0,92850.0,0.2477355]
[1734980504049,0.445233,92851.0,92850.0,0.2477355]
[1734980504479,0.445233,92851.0,92850.0,0.2517355]
[1734980505254,0.365398,92851.0,92850.0,0.2517355]
[1734980505486,0.368398,92851.0,92850.0,0.2517355]
[1734980506222,0.365398,92851.0,92850.0,0.2477355]
[1734980506417,0.368398,92851.0,92850.0,0.2477355]
[1734980506561,0.368398,92851.0,92850.0,0.2527355]
[1734980506767,0.003,92851.0,92850.0,0.2967355]
[1734980507163,0.008,92851.0,92850.0,0.2967355]
[1734980507421,0.008,92851.0,92850.0,0.40072182]
[1734980507621,0.005,92851.0,92850.0,0.40072182]
[1734980507834,0.005,92851.0,92850.0,0.32572182]
[1734980508042,0.006,92851.0,92850.0,0.1727355]
[1734980508394,0.0272562,92851.0,92850.0,0.1727355]
[1734980508600,0.005,92851.0,92850.0,0.1747355]
[1734980508968,0.15,92852.0,92850.0,0.1747355]
[1734980509180,0.001,92851.0,92850.0,0.1777355]
[1734980509388,0.13718435,92852.0,92851.0,0.049]
[1734980509996,0.001,92854.0,92853.0,0.049]
[1734980510552,0.001,92854.0,92853.0,0.15406318]
[1734980510752,0.001,92854.0,92853.0,0.15298632]
[1734980511706,0.002,92854.0,92853.0,0.15298632]
[1734980512204,0.001,92854.0,92853.0,0.15298632]
[1734980512663,0.001,92854.0,92853.0,0.1540631]
[1734980512664,0.002,92854.0,92853.0,0.1540631]
[1734980513064,0.003,92854.0,92853.0,0.1540631]
[1734980513271,0.002,92854.0,92853.0,0.1540631]
[1734980513646,0.003,92854.0,92853.0,0.1540631]
[1734980513844,0.002,92854.0,92853.0,0.1540631]
[1734980514096,0.003,92854.0,92853.0,0.1540631]
[1734980514799,0.001,92854.0,92853.0,0.1540631]
[1734980515013,0.001,92854.0,92853.0,0.1580631]
[1734980515170,0.001,92854.0,92853.0,0.1610631]
[1734980515373,0.001171,92854.0,92853.0,0.1540631]
[1734980515937,0.001171,92854.0,92853.0,0.2630631]
[1734980515938,0.002171,92854.0,92853.0,0.2630631]
[1734980516135,0.000171,92895.0,92864.0,0.049]
[1734980516464,0.000171,92895.0,92864.0,0.46943076]
[1734980516612,0.000171,92895.0,92864.0,0.46835432]
[1734980517030,0.000171,92895.0,92864.0,0.55015432]
[1734980517211,0.000171,92895.0,92864.0,0.65015432]
[1734980517591,0.215332,92880.0,92864.0,0.15298632]
[1734980517788,0.21532,92885.0,92864.0,0.15298632]
[1734980517992,0.00153255,92865.0,92864.0,0.056]
[1734980518600,0.00153255,92865.0,92864.0,0.049]
[1734980518601,0.00053255,92865.0,92864.0,0.049]
[1734980518806,0.00153255,92865.0,92864.0,0.055]
[1734980519161,0.00153255,92865.0,92864.0,0.049]
[1734980519162,0.00053255,92865.0,92864.0,0.049]
[1734980519367,0.00053255,92865.0,92864.0,0.052]
[1734980519566,0.00053255,92865.0,92864.0,0.049]
[1734980519930,0.00153255,92865.0,92864.0,0.058]
[1734980520331,0.0382211,92865.0,92864.0,0.013]
[1734980521106,0.0382211,92865.0,92864.0,0.009]
[1734980521311,0.00153255,92865.0,92864.0,0.009]
[1734980521531,0.00153255,92865.0,92864.0,0.058]
[1734980521737,0.00153255,92865.0,92864.0,0.15298632]
[1734980521738,0.00053255,92865.0,92864.0,0.15298632]
[1734980521880,0.00053255,92865.0,92864.0,0.15498632]
[1734980522090,0.00036956,92865.0,92864.0,0.002]
[1734980522289,0.00036956,92865.0,92864.0,0.049]
[1734980522495,0.00036956,92865.0,92864.0,0.05]
[1734980522874,0.00036956,92865.0,92864.0,0.049]
[1734980523077,0.00036956,92865.0,92864.0,0.15798632]
[1734980524384,0.00036956,92865.0,92864.0,0.16006294]
[1734980524583,0.00036956,92865.0,92864.0,0.25506294]
[1734980524789,0.00036956,92865.0,92864.0,0.15898632]
[1734980525003,0.00036956,92865.0,92864.0,0.15906279]
[1734980525212,0.00036956,92865.0,92864.0,0.25406279]
[1734980525390,0.00036956,92865.0,92864.0,0.15698632]
[1734980525594,0.00036956,92865.0,92864.0,0.15406278]
[1734980526015,0.00036956,92865.0,92864.0,0.10806278]
[1734980526244,0.00036956,92865.0,92864.0,0.15706278]
[1734980526524,0.00036956,92865.0,92864.0,0.15706279]
[1734980526741,0.00036956,92865.0,92864.0,0.15906279]
[1734980527089,0.00036956,92865.0,92864.0,0.25706279]
[1734980527293,0.00036956,92865.0,92864.0,0.25615712]
[1734980527501,0.00045496,92865.0,92864.0,0.25315712]
[1734980527709,0.00045496,92865.0,92864.0,0.25415712]
[1734980528125,0.00045496,92865.0,92864.0,0.25315712]
[1734980528287,0.00345496,92865.0,92864.0,0.25415712]
[1734980528488,0.00945496,92865.0,92864.0,0.25415712]
[1734980531761,0.00945496,92865.0,92864.0,0.35415712]
[1734980532338,0.00945496,92865.0,92864.0,0.15415712]
[1734980532734,0.00945496,92865.0,92864.0,0.36952512]
[1734980533295,0.00645496,92865.0,92864.0,0.36952512]
[1734980534438,0.00045496,92865.0,92864.0,0.36852512]
[1734980534841,0.00145496,92865.0,92864.0,0.36852512]
[1734980535634,0.00145496,92865.0,92864.0,0.15315712]
[1734980537467,0.00145496,92865.0,92864.0,0.15423373]
[1734980538091,0.00145496,92865.0,92864.0,0.10415712]
[1734980538311,0.00145496,92865.0,92864.0,0.0001708]
[1734980538312,0.15145496,92865.0,92864.0,0.0001708]
[1734980538516,0.21793216,92865.0,92864.0,0.0001708]
[1734980539672,0.21693216,92865.0,92864.0,0.0001708]
[1734980539991,0.21693216,92865.0,92864.0,0.0051708]
[1734980540403,0.21693216,92865.0,92864.0,0.0001708]
[1734980540818,0.21693216,92865.0,92864.0,0.0011708]
[1734980540997,0.15045496,92865.0,92864.0,0.0011708]
[1734980541398,0.15045496,92865.0,92864.0,0.0041708]
[1734980541821,0.15045496,92865.0,92864.0,0.0011708]
[1734980542440,0.15045496,92865.0,92864.0,0.0041708]
[1734980544763,0.0826,92868.0,92864.0,0.0041708]
[1734980544898,0.31934732,92867.0,92864.0,0.00422412]
[1734980545100,0.215365,92866.0,92864.0,0.00422412]
[1734980545726,0.215365,92866.0,92864.0,0.00122412]
[1734980545899,0.215365,92866.0,92864.0,0.00222412]
[1734980546102,0.215365,92866.0,92864.0,0.00322412]
[1734980546317,1.02895662,92865.0,92864.0,0.00322412]
[1734980546528,0.215398,92851.0,92831.0,0.049]
[1734980546891,0.215398,92851.0,92850.0,0.17326805]
[1734980547096,0.365398,92851.0,92850.0,0.17326805]
[1734980547715,0.367398,92851.0,92850.0,0.17326805]
[1734980547915,0.55120222,92851.0,92850.0,0.09826805]
[1734980548286,1.49060822,92851.0,92850.0,0.09826805]
[1734980548687,1.49560822,92851.0,92850.0,0.09826805]
[1734980548887,1.44284122,92851.0,92850.0,0.09826805]
[1734980549087,1.43284122,92851.0,92850.0,0.09826805]
[1734980549302,0.95733622,92851.0,92850.0,0.09826805]
[1734980549504,0.71970422,92851.0,92850.0,0.09826805]
[1734980549805,0.73518632,92851.0,92850.0,0.09826805]
[1734980550230,0.73818632,92851.0,92850.0,0.09826805]
[1734980550437,0.69930032,92851.0,92850.0,0.09826805]
[1734980550646,0.55268432,92851.0,92850.0,0.09926805]
[1734980550852,0.051,92841.0,92840.0,0.02752344]
[1734980551023,0.051,92841.0,92835.0,0.35167304]
[1734980551024,0.074,92836.0,92835.0,0.35167304]
[1734980551227,2.12707232,92836.0,92835.0,0.35167304]
[1734980551427,3.20072032,92836.0,92835.0,0.35167304]
[1734980551606,2.95763632,92836.0,92835.0,0.35167304]
[1734980551858,2.57843832,92836.0,92835.0,0.35167304]
[1734980552060,2.68242464,92836.0,92835.0,0.35167304]
[1734980552276,2.55423564,92836.0,92835.0,0.35267304]
[1734980552453,2.21335334,92836.0,92835.0,0.35267304]
[1734980552653,2.18255464,92836.0,92835.0,0.35267304]
[1734980552989,2.06178864,92836.0,92835.0,0.15057304]
[1734980553524,1.92959464,92836.0,92835.0,0.14857304]
[1734980553698,1.75108964,92836.0,92835.0,0.14853304]
[1734980553848,1.76008964,92836.0,92835.0,0.14853304]
[1734980554053,0.009,92836.0,92835.0,0.14853304]
[1734980554255,0.365433,92836.0,92835.0,0.14853304]
[1734980554464,0.372433,92836.0,92835.0,0.14853304]
[1734980554664,0.367433,92836.0,92835.0,0.15562765]
[1734980555063,0.371433,92836.0,92835.0,0.15562765]
[1734980555689,0.4516616,92836.0,92835.0,0.15562765]
[1734980555914,0.369433,92836.0,92835.0,0.15562765]
[1734980556624,0.365433,92836.0,92835.0,0.15562765]
[1734980556775,0.367433,92836.0,92835.0,0.15562765]
[1734980556977,0.368433,92836.0,92835.0,0.15562765]
[1734980557230,0.366433,92836.0,92835.0,0.15562765]
[1734980557437,0.40132903,92836.0,92835.0,0.15562765]
[1734980557851,0.365433,92836.0,92835.0,0.15562765]
[1734980558042,0.365433,92836.0,92835.0,0.08062765]
[1734980558244,0.366433,92836.0,92835.0,0.07353304]
[1734980558825,0.36589441,92836.0,92835.0,0.07353304]
[1734980559806,0.002,92836.0,92835.0,0.35561936]
[1734980560146,0.215432,92837.0,92835.0,0.07353304]
[1734980560347,0.2369752,92837.0,92835.0,0.07653304]
[1734980560706,0.2369752,92837.0,92835.0,0.07353304]
[1734980560919,0.2369752,92837.0,92835.0,0.08058167]
[1734980561144,0.001,92836.0,92835.0,0.08758167]
[1734980561466,0.15,92836.0,92835.0,0.08458167]
[1734980561644,0.15,92837.0,92835.0,0.08458167]
[1734980561848,0.001,92837.0,92835.0,0.08458167]
[1734980562195,0.001,92837.0,92835.0,0.08058167]
[1734980562391,0.15,92836.0,92835.0,0.08058167]
[1734980562600,0.15,92836.0,92835.0,0.12958167]
[1734980562797,0.15,92836.0,92835.0,0.12966717]
[1734980563002,0.150171,92836.0,92835.0,0.12966717]
[1734980563207,0.150171,92836.0,92835.0,0.12761854]
[1734980563414,0.000171,92836.0,92835.0,0.12461854]
[1734980563859,0.001171,92836.0,92835.0,0.05061854]
[1734980564080,0.000171,92836.0,92835.0,0.05061854]
[1734980564456,0.001171,92836.0,92835.0,0.05361854]
[1734980564686,0.001171,92836.0,92835.0,0.05061854]
[1734980565283,0.001171,92836.0,92835.0,0.04761854]
[1734980565700,0.001171,92836.0,92835.0,0.05061854]
[1734980565906,0.002171,92836.0,92835.0,0.05361854]
[1734980566106,0.002171,92836.0,92835.0,0.0030855]
[1734980566359,0.000171,92836.0,92835.0,0.0030855]
[1734980566553,0.001171,92836.0,92835.0,0.0060855]
[1734980566764,0.0593737,92836.0,92835.0,0.0030855]
[1734980567038,0.16336002,92836.0,92835.0,8.55e-05]
[1734980567216,0.33736002,92836.0,92835.0,0.0060855]
[1734980567511,1.14893502,92836.0,92835.0,0.0030855]
[1734980567722,1.14893502,92836.0,92835.0,0.0060855]
[1734980567723,0.98255702,92836.0,92835.0,0.0060855]
[1734980567907,0.98355702,92836.0,92835.0,0.0060855]
[1734980568265,0.98355702,92836.0,92835.0,0.0030855]
[1734980568882,0.31336002,92836.0,92835.0,0.0030855]
[1734980569131,0.47772402,92836.0,92835.0,8.55e-05]
[1734980569324,0.50072402,92836.0,92835.0,8.55e-05]
[1734980569530,0.50572402,92836.0,92835.0,8.55e-05]
[1734980569820,0.50172402,92836.0,92835.0,8.55e-05]
[1734980570079,0.50072602,92836.0,92835.0,8.55e-05]
[1734980570284,0.28115732,92836.0,92835.0,8.55e-05]
[1734980570507,0.25815732,92836.0,92835.0,8.55e-05]
[1734980570641,0.26115732,92836.0,92835.0,8.55e-05]
[1734980570845,0.004171,92836.0,92835.0,8.55e-05]
[1734980571055,0.004171,92836.0,92835.0,0.27840486]
[1734980571655,0.003171,92836.0,92835.0,0.27840486]
[1734980571882,0.004171,92836.0,92835.0,0.27840486]
[1734980572259,0.006171,92836.0,92835.0,0.27840486]
[1734980572461,0.003171,92836.0,92835.0,0.27840486]
[1734980572681,0.004171,92836.0,92835.0,0.28440486]
[1734980572863,0.005171,92836.0,92835.0,0.28740486]
[1734980573074,0.004171,92836.0,92835.0,0.28140486]
[1734980573397,0.005171,92836.0,92835.0,0.28740486]
[1734980577981,0.00053225,92851.0,92850.0,0.26293404]
[1734980578315,0.00053225,92851.0,92850.0,0.49242036]
[1734980579342,0.00053225,92851.0,92850.0,0.49642036]
[1734980579512,0.00053225,92851.0,92850.0,0.49942036]
[1734980579727,0.00053225,92851.0,92850.0,0.49642036]
[1734980580244,0.0001708,92865.0,92850.0,0.49642036]
[1734980580245,0.0001708,92865.0,92864.0,0.04753304]
[1734980580375,0.0001708,92865.0,92864.0,0.36688736]
[1734980580576,0.0001708,92865.0,92864.0,0.44838736]
[1734980580831,0.14179096,92910.0,92890.0,0.04753304]
[1734980581023,0.14179096,92910.0,92889.0,0.04753304]
[1734980581266,0.215288,92899.0,92889.0,0.04753304]
[1734980581482,0.215288,92899.0,92883.0,0.0825765]
[1734980581483,0.09447122,92912.0,92894.0,0.04753304]
[1734980581695,0.09447122,92912.0,92894.0,0.15259568]
[1734980581902,0.09447122,92912.0,92894.0,0.04753304]
[1734980581903,0.21121158,92903.0,92894.0,0.04753304]
[1734980582348,0.21121158,92903.0,92883.0,0.0815]
[1734980582349,0.02112116,92903.0,92883.0,0.0815]
[1734980582566,0.18905461,92917.0,92874.0,0.0486]
[1734980582567,0.10453583,92902.0,92874.0,0.0486]
[1734980582783,0.215335,92879.0,92874.0,0.04873196]
[1734980582994,0.35214732,92875.0,92874.0,0.00013196]
[1734980583984,0.215343,92875.0,92874.0,0.00013196]
[1734980584199,0.365343,92875.0,92874.0,0.00013196]
[1734980584401,0.15,92875.0,92874.0,0.00013196]
[1734980584757,0.14996,92875.0,92874.0,0.00013196]
[1734980584983,0.14996,92875.0,92874.0,0.00513196]
[1734980585183,0.215287,92899.0,92874.0,0.047665]
[1734980585503,0.14851502,92898.0,92874.0,0.050665]
[1734980585707,0.001,92875.0,92874.0,0.058665]
[1734980586006,0.215303,92893.0,92877.0,0.04753304]
[1734980586239,0.15579096,92917.0,92888.0,0.09613304]
[1734980586240,0.215248,92916.0,92888.0,0.09613304]
[1734980586414,0.21525,92915.0,92895.0,0.04753304]
[1734980586619,0.215275,92905.0,92895.0,0.04753304]
[1734980586828,0.1,92920.0,92895.0,0.04753304]
[1734980587022,0.1,92920.0,92888.0,0.0486]
[1734980587023,0.215293,92897.0,92888.0,0.0486]
[1734980587231,0.00212044,92896.0,92888.0,0.0486]
[1734980587436,0.00212044,92896.0,92881.0,0.04753304]
[1734980587437,0.21534,92876.0,92875.0,0.0486]
[1734980587614,0.21534,92876.0,92874.0,0.00830276]
[1734980587821,0.15,92875.0,92874.0,0.00830276]
[1734980588222,0.215373,92862.0,92861.0,0.0486]
[1734980588402,0.365373,92862.0,92861.0,0.0486]
[1734980588605,0.215366,92865.0,92861.0,0.0486]
[1734980588960,0.215366,92865.0,92849.0,0.215401]
[1734980588961,0.215352,92871.0,92849.0,0.04753304]
[1734980589162,0.21602218,92871.0,92849.0,0.04753304]
[1734980589304,0.00067018,92871.0,92861.0,0.005]
[1734980589501,0.215373,92862.0,92861.0,0.005]
[1734980589741,0.34235932,92862.0,92861.0,0.014]
[1734980589939,0.215433,92836.0,92822.0,0.04753304]
[1734980590121,0.215433,92836.0,92819.0,0.075769]
[1734980590122,0.215433,92836.0,92833.0,0.04753304]
[1734980590327,0.215429,92838.0,92823.0,0.04753304]
[1734980590559,0.430858,92838.0,92825.0,0.04753304]
[1734980590753,0.365433,92836.0,92825.0,0.04753304]
[1734980591159,0.36559254,92836.0,92833.0,0.04753304]
[1734980592020,0.36659254,92836.0,92833.0,0.04753304]
[1734980592765,0.36759254,92836.0,92833.0,0.04753304]
[1734980592971,0.215438,92834.0,92819.0,0.29124]
[1734980593171,0.15,92833.0,92820.0,0.10398632]
[1734980594455,0.215453,92828.0,92820.0,0.10398632]
[1734980594585,0.00015954,92836.0,92820.0,0.10398632]
[1734980595172,0.001,92834.0,92833.0,0.34414]
[1734980595322,0.001,92834.0,92833.0,0.44812632]
[1734980595530,0.14179096,92878.0,92833.0,0.23268632]
[1734980595531,0.215349,92873.0,92833.0,0.23268632]
[1734980595733,0.05808916,92872.0,92841.0,0.10398632]
[1734980595966,0.22376468,92874.0,92859.0,0.0778]
[1734980596104,0.22376468,92874.0,92860.0,0.0493]
[1734980596310,0.00841768,92874.0,92861.0,0.10398632]
[1734980596520,0.00841768,92874.0,92862.0,0.00107671]
[1734980596730,0.00841768,92874.0,92864.0,0.215368]
[1734980596929,0.00841768,92874.0,92865.0,0.10506296]
[1734980597129,0.00841768,92874.0,92866.0,0.215364]
[1734980597368,0.13477907,92874.0,92833.0,0.004]
[1734980597571,0.215408,92847.0,92834.0,0.10398632]
[1734980597822,0.1048001,92873.0,92834.0,0.02898632]
[1734980597823,0.21537,92864.0,92834.0,0.02898632]
[1734980598084,0.15,92862.0,92833.0,0.004]
[1734980598361,0.215431,92838.0,92831.0,0.0788]
[1734980598891,0.215431,92838.0,92834.0,0.001]
[1734980599138,0.215431,92838.0,92831.0,0.0788]
[1734980599347,0.215442,92833.0,92831.0,0.0788]
[1734980599582,0.215385,92857.0,92831.0,0.08333225]
[1734980599835,0.215437,92835.0,92831.0,0.08333225]
[1734980600054,0.215428,92839.0,92831.0,0.08333225]
[1734980600055,0.215431,92837.0,92831.0,0.08333225]
[1734980601178,0.15,92838.0,92831.0,0.07933225]
[1734980601432,0.15,92838.0,92834.0,0.003]
[1734980601745,0.15,92838.0,92831.0,0.07933225]
[1734980602239,0.215431,92837.0,92831.0,0.08333225]
[1734980602416,0.215431,92837.0,92831.0,0.07933225]
[1734980602622,0.215431,92837.0,92834.0,0.003]
[1734980602832,0.15,92838.0,92834.0,0.003]
[1734980603034,0.15,92838.0,92831.0,0.07933225]
[1734980603234,0.15,92842.0,92832.0,0.10398632]
[1734980603439,0.00841768,92841.0,92832.0,0.10506343]
[1734980603797,0.00841768,92841.0,92838.0,0.10398632]
[1734980604004,0.02237507,92874.0,92840.0,0.1216]
[1734980604173,0.215349,92873.0,92843.0,0.10398632]
[1734980604322,0.215349,92873.0,92857.0,0.215384]
[1734980604532,0.35712996,92877.0,92858.0,0.10506305]
[1734980604747,0.14179096,92877.0,92864.0,0.1299]
[1734980605011,0.215319,92886.0,92865.0,0.10398632]
[1734980605204,0.215305,92892.0,92873.0,0.215347]
[1734980605413,0.05343921,92902.0,92874.0,0.10398632]
[1734980605618,0.215316,92887.0,92874.0,0.10398632]
[1734980605841,0.001,92877.0,92875.0,0.215343]
[1734980606196,0.001,92877.0,92876.0,0.10398632]
[1734980606683,0.001,92877.0,92864.0,0.1299]
[1734980606841,0.001,92877.0,92874.0,0.001]
[1734980607516,0.580686,92875.0,92874.0,0.001]
[1734980607699,0.68467232,92875.0,92874.0,0.001]
[1734980607844,0.77843955,92875.0,92874.0,0.001]
[1734980608052,0.15,92848.0,92838.0,0.09612019]
[1734980608606,0.15,92848.0,92837.0,0.082]
[1734980608962,0.15,92848.0,92838.0,0.10506335]
[1734980609173,0.151,92848.0,92838.0,0.10506335]
[1734980609377,0.152,92848.0,92838.0,0.10451857]
[1734980609581,0.151,92848.0,92838.0,0.10451857]
[1734980609786,0.152,92848.0,92838.0,0.10451857]
[1734980609996,0.002,92848.0,92838.0,0.10451857]
[1734980610198,0.215424,92841.0,92838.0,0.00053225]
[1734980610733,0.002,92848.0,92838.0,0.00053225]
[1734980610734,0.001,92848.0,92843.0,0.215416]
[1734980610912,0.001,92848.0,92844.0,0.10506324]
[1734980611432,0.001,92848.0,92844.0,0.10398632]
[1734980611840,0.15,92853.0,92844.0,0.10398632]
[1734980612579,0.215406,92848.0,92844.0,0.001]
[1734980612728,0.15,92854.0,92844.0,0.001]
[1734980612934,0.215382,92858.0,92837.0,0.00853225]
[1734980613136,0.15,92857.0,92838.0,0.10398632]
[1734980613353,0.215408,92847.0,92838.0,0.10398632]
[1734980613561,0.215408,92847.0,92844.0,0.001]
[1734980613821,0.215408,92847.0,92838.0,0.10398632]
[1734980614023,0.215418,92843.0,92838.0,0.10398632]
[1734980614376,0.215404,92849.0,92838.0,0.10398632]
[1734980614831,0.430808,92849.0,92838.0,0.10398632]
[1734980615164,0.215404,92849.0,92838.0,0.10398632]
[1734980615567,0.215404,92849.0,92844.0,0.001]
[1734980615916,0.15,92852.0,92838.0,0.10398632]
[1734980616117,0.365385,92857.0,92839.0,0.00107698]
[1734980616348,0.365385,92857.0,92840.0,0.10398632]
[1734980616554,0.15,92851.0,92840.0,0.10398632]
[1734980617063,0.15,92851.0,92843.0,0.215416]
[1734980617270,0.00053388,92860.0,92844.0,0.10398632]
[1734980617466,0.00053388,92860.0,92857.0,0.0479]
[1734980617691,0.00053388,92860.0,92859.0,0.18008632]
[1734980617899,0.00048025,92860.0,92859.0,0.18008632]
[1734980619809,0.00048025,92860.0,92859.0,0.18208632]
[1734980620238,0.00010549,92860.0,92859.0,0.18008632]
[1734980621157,0.215348,92873.0,92860.0,0.215377]
[1734980621335,0.2155081,92873.0,92861.0,0.10398632]
[1734980621917,0.0001601,92873.0,92861.0,0.10506304]
[1734980622102,0.0001601,92873.0,92871.0,0.215351]
[1734980622302,0.0001601,92873.0,92872.0,0.10398632]
[1734980623708,0.0001601,92873.0,92872.0,0.03406288]
[1734980624784,0.0001601,92873.0,92872.0,0.03006288]
[1734980624985,0.0001601,92873.0,92872.0,0.03206288]
[1734980625203,0.33648907,92929.0,92881.0,0.1]
[1734980625204,0.215234,92922.0,92881.0,0.1]
[1734980625401,0.00017734,92903.0,92888.0,0.10398632]
[1734980625765,0.00017734,92903.0,92878.0,0.1]
[1734980625766,0.00017734,92903.0,92902.0,0.29808]
[1734980625943,0.00017734,92903.0,92902.0,0.40206632]
[1734980626151,0.00017734,92903.0,92902.0,0.18678632]
[1734980626355,0.00017734,92903.0,92902.0,0.18786243]
[1734980626903,0.14179096,92927.0,92926.0,0.215225]
[1734980627156,0.14179096,92927.0,92926.0,0.31921132]
[1734980627328,0.0001708,92929.0,92928.0,0.0828]
[1734980627554,0.0001708,92929.0,92927.0,0.0487]
[1734980627785,0.0001708,92929.0,92912.0,0.0828]
[1734980628009,0.0001708,92929.0,92926.0,0.001]
[1734980628323,0.2153908,92929.0,92926.0,0.001]
[1734980628540,0.2153908,92929.0,92914.0,0.215252]
[1734980628759,0.2153908,92929.0,92911.0,0.0487]
[1734980628760,0.04305998,92928.0,92911.0,0.0487]
[1734980628965,0.15,92914.0,92912.0,0.002]
[1734980629196,0.215244,92918.0,92911.0,0.0487]
[1734980629400,0.15,92927.0,92911.0,0.0487]
[1734980629695,0.43045,92926.0,92911.0,0.0487]
[1734980629894,0.15,92927.0,92911.0,0.0487]
[1734980630159,0.215243,92919.0,92912.0,0.001]
[1734980630349,0.0001708,92929.0,92913.0,0.10398632]
[1734980630551,0.0001708,92929.0,92918.0,0.215243]
[1734980630755,0.0001708,92929.0,92912.0,0.001]
[1734980630756,0.15,92927.0,92919.0,0.10398632]
[1734980631127,0.15,92925.0,92919.0,0.10398632]
[1734980631335,0.215229,92924.0,92919.0,0.10398632]
[1734980631535,0.215229,92924.0,92909.0,0.215262]
[1734980631744,0.215229,92924.0,92910.0,0.10398632]
[1734980631950,0.215229,92924.0,92911.0,0.215259]
[1734980632155,0.215229,92924.0,92919.0,0.001]
[1734980632322,0.15,92926.0,92919.0,0.001]
[1734980632523,0.15,92926.0,92915.0,0.215249]
[1734980632718,0.15,92926.0,92915.0,0.31923532]
[1734980632926,0.15,92926.0,92915.0,0.24423532]
[1734980633212,0.15,92926.0,92915.0,0.10398632]
[1734980633420,0.01862311,92926.0,92881.0,0.023]
[1734980633629,0.01862311,92926.0,92891.0,9.194e-05]
[1734980633630,0.215285,92900.0,92891.0,9.194e-05]
[1734980633801,0.15,92922.0,92891.0,0.10407826]
[1734980634012,0.215285,92900.0,92891.0,0.10407826]
[1734980634237,0.15,92903.0,92891.0,0.10407826]
[1734980634449,0.15,92903.0,92896.0,0.215292]
[1734980634592,0.15,92903.0,92897.0,0.10398632]
[1734980634805,0.15,92903.0,92898.0,0.215289]
[1734980635005,0.1,92939.0,92891.0,9.194e-05]
[1734980635006,0.15,92920.0,92899.0,0.10398632]
[1734980635277,0.003,92922.0,92900.0,0.00107616]
[1734980635454,0.003,92922.0,92901.0,0.10398632]
[1734980635653,0.215238,92921.0,92908.0,0.215266]
[1734980635851,0.003,92922.0,92910.0,0.215262]
[1734980636057,0.215236,92921.0,92910.0,0.10398632]
[1734980636700,0.005,92922.0,92911.0,0.10398632]
[1734980636944,0.005,92922.0,92911.0,0.10506242]
[1734980637343,0.005,92922.0,92919.0,0.215239]
[1734980637344,0.001,92921.0,92919.0,0.215239]
[1734980637566,0.001,92921.0,92920.0,0.10506231]
[1734980637769,0.001,92921.0,92920.0,0.18958865]
[1734980637979,0.215187,92943.0,92920.0,0.18958865]
[1734980638198,0.0001708,92944.0,92920.0,0.00752634]
[1734980638410,0.21522,92928.0,92920.0,0.00752634]
[1734980638611,0.21522,92928.0,92911.0,0.002]
[1734980638817,0.15,92932.0,92921.0,0.10398632]
[1734980639043,0.0001708,92944.0,92928.0,0.21522]
[1734980639246,0.0001708,92944.0,92928.0,0.31920632]
[1734980639460,0.0001708,92944.0,92928.0,0.32693772]
[1734980639667,0.0001708,92944.0,92928.0,0.37323772]
[1734980640106,0.21519,92941.0,92928.0,0.37323772]
[1734980640302,0.0001708,92944.0,92928.0,0.37323772]
[1734980640742,0.0001708,92944.0,92928.0,0.37523772]
[1734980640947,0.0001708,92944.0,92928.0,0.45213772]
[1734980641282,0.2153558,92944.0,92928.0,0.45813772]
[1734980641488,0.215211,92932.0,92928.0,0.0077314]
[1734980641705,0.215211,92932.0,92918.0,0.00107602]
[1734980641905,0.215202,92936.0,92928.0,0.008]